fUST/lending_fUST_20250804
["ID","MTS","AMOUNT","RATE_DAILY","PERIOD"]
[377224238,1754303453956,-460.0,0.00036583,2]
[377224239,1754303453966,-460.0,0.00036583,2]
[377224240,1754303453975,-460.0,0.00036583,2]
[377224241,1754303453984,-460.0,0.00036583,2]
[377224242,1754303453993,-532.94,0.00036583,2]
[377224243,1754303454004,-460.0,0.00036583,2]
[377224244,1754303454013,-460.0,0.00036583,2]
[377224245,1754303454022,-460.0,0.00036583,2]
[377224246,1754303454032,-460.0,0.00036583,2]
[377224247,1754303454041,-460.0,0.00036583,2]
[377224248,1754303454050,-669.54,0.00036583,2]
[377224249,1754303454060,-460.0,0.00036583,2]
[377224250,1754303454069,-500.0,0.00036583,2]
[377224251,1754303454079,-533.88433263,0.00036583,2]
[377224252,1754303454088,-460.0,0.00036583,2]
[377224253,1754303454098,-460.0,0.00036583,2]
[377224254,1754303454107,-2434.32,0.00036583,2]
[377224255,1754303454117,-1790.38,0.00036583,2]
[377224256,1754303454126,-460.0,0.00036583,2]
[377224257,1754303454136,-1017.87,0.00036583,2]
[377224258,1754303454145,-892.82,0.00036583,2]
[377224259,1754303454155,-460.0,0.00036583,2]
[377224260,1754303454165,-1673.54,0.00036583,2]
[377224261,1754303454175,-1347.64,0.00036583,2]
[377224262,1754303454184,-507.16,0.00036583,2]
[377224263,1754303454193,-460.0,0.00036583,2]
[377224264,1754303454203,-467.67451147,0.00036583,2]
[377224265,1754303454212,-460.0,0.00036583,2]
[377224266,1754303454221,-217.72414914,0.00036583,2]
[377224267,1754303454231,-460.0,0.00036583,2]
[377224268,1754303454241,-2659.51,0.00036583,2]
[377224269,1754303454251,-1282.94,0.00036583,2]
[377224270,1754303454263,-547.39,0.00036583,2]
[377224271,1754303454273,-151.0,0.00036584,14]
[377224272,1754303454283,-500.0,0.00036584,4]
[377224273,1754303454292,-151.0,0.00036584,14]
[377224274,1754303454302,-16517.47,0.00036584,2]
[377224275,1754303454311,-1323.01,0.00036584,2]
[377224276,1754303454321,-7476.02,0.00036584,2]
[377224277,1754303454330,-460.0,0.00036584,2]
[377224278,1754303454340,-3933.54,0.00036584,2]
[377224279,1754303454350,-460.0,0.00036585,2]
[377224280,1754303454360,-2128.75,0.00036585,2]
[377224281,1754303454370,-460.0,0.00036585,2]
[377224282,1754303454380,-2479.48,0.00036585,2]
[377224283,1754303454389,-460.0,0.00036585,2]
[377224284,1754303454400,-1021.41,0.00036585,2]
[377224285,1754303454409,-826.45,0.00036585,2]
[377224286,1754303454419,-460.0,0.00036585,2]
[377224287,1754303454428,-3088.17,0.00036585,2]
[377224288,1754303454437,-475.07,0.00036585,2]
[377224289,1754303454447,-460.0,0.00036585,2]
[377224290,1754303454456,-694.91,0.00036585,2]
[377224291,1754303454465,-1226.35,0.00036585,2]
[377224292,1754303454475,-1313.4,0.00036585,2]
[377224293,1754303454484,-460.0,0.00036585,2]
[377224294,1754303454494,-460.0,0.00036585,2]
[377224295,1754303454505,-1976.52,0.00036585,2]
[377224296,1754303454603,-760.55,0.00036585,2]
[377224297,1754303454614,-1919.9,0.00036585,2]
[377224298,1754303454624,-460.0,0.00036585,2]
[377224299,1754303454633,-460.0,0.00036585,2]
[377224300,1754303454643,-1982.17,0.00036585,2]
[377224301,1754303454652,-460.0,0.00036585,2]
[377224302,1754303454662,-460.0,0.00036585,2]
[377224303,1754303454671,-859.86,0.00036585,2]
[377224304,1754303454681,-460.0,0.00036585,2]
[377224305,1754303454691,-460.0,0.00036585,2]
[377224306,1754303454701,-847.55,0.00036585,2]
[377224307,1754303454711,-460.0,0.00036585,2]
[377224308,1754303454724,-534.64,0.00036585,2]
[377224309,1754303454735,-460.0,0.00036585,2]
[377224310,1754303454744,-460.0,0.00036585,2]
[377224311,1754303454754,-530.99,0.00036585,2]
[377224312,1754303454763,-1893.38,0.00036585,2]
[377224313,1754303454773,-1421.8,0.00036585,2]
[377224314,1754303454782,-1103.48,0.00036585,2]
[377224315,1754303454792,-460.0,0.00036585,2]
[377224316,1754303454802,-500.0,0.00036585,2]
[377224317,1754303454812,-460.0,0.00036585,2]
[377224318,1754303454821,-460.0,0.00036585,2]
[377224319,1754303454831,-619.57,0.00036585,2]
[377224320,1754303454840,-1920.5,0.00036585,2]
[377224321,1754303454849,-780.86,0.00036585,2]
[377224322,1754303454859,-1241.24,0.00036595,2]
[377224323,1754303454869,-728.2,0.00036595,2]
[377224324,1754303454879,-5667.12,0.00036595,2]
[377224325,1754303454888,-151.0,0.00036595,14]
[377224326,1754303454898,-264.547219,0.00036595,14]
[377224327,1754303454908,-151.0,0.00036595,14]
[377224328,1754303454918,-151.0,0.00036595,14]
[377224329,1754303454927,-197.317515,0.00036595,14]
[377224330,1754303454937,-197.317515,0.00036595,14]
[377224331,1754303454946,-1081.47,0.00036595,2]
[377224332,1754303454955,-6359.95,0.00036595,2]
[377224333,1754303454964,-759.74,0.00036595,2]
[377224334,1754303454975,-460.0,0.00036595,2]
[377224335,1754303454984,-703.44,0.00036595,2]
[377224336,1754303454994,-1634.51,0.00036595,2]
[377224337,1754303455003,-865.36,0.00036595,2]
[377224338,1754303455014,-460.0,0.00036595,2]
[377224339,1754303455024,-714.63,0.00036595,2]
[377224340,1754303455033,-2914.88,0.00036595,2]
[377224341,1754303455043,-460.0,0.00036595,2]
[377224342,1754303455053,-151.0,0.000366,12]
[377224343,1754303455062,-460.0,0.00036613,2]
[377224344,1754303455071,-460.0,0.00036613,2]
[377224345,1754303455080,-798.99,0.00036616,2]
[377224346,1754303455090,-554.81,0.00036616,2]
[377224347,1754303455099,-1931.1,0.00036616,2]
[377224348,1754303455109,-700.4,0.00036616,2]
[377224349,1754303455119,-493.34377258,0.00036616,2]
[377224350,1754303455128,-705.21,0.00036616,2]
[377224351,1754303455138,-460.0,0.00036616,2]
[377224352,1754303455147,-460.0,0.00036616,2]
[377224353,1754303455156,-460.0,0.00036616,2]
[377224354,1754303455166,-1047.04,0.00036616,2]
[377224355,1754303455176,-411.42310179,0.00036616,2]
[377224356,1754303455185,-460.0,0.00036616,2]
[377224357,1754303455194,-460.0,0.00036616,2]
[377224358,1754303455204,-945.55,0.00036616,2]
[377224359,1754303455213,-460.0,0.00036616,2]
[377224360,1754303455223,-460.0,0.00036616,2]
[377224361,1754303455232,-7270.13,0.00036616,2]
[377224362,1754303455241,-460.0,0.00036616,2]
[377224363,1754303455250,-468.79108283,0.00036616,2]
[377224364,1754303455261,-609.52,0.00036616,2]
[377224365,1754303455270,-964.32,0.00036616,2]
[377224366,1754303455279,-193.24002312,0.00036616,2]
[377224367,1754303455289,-676.48,0.00036616,2]
[377224368,1754303455298,-5287.54,0.00036616,2]
[377224369,1754303455307,-460.0,0.00036616,2]
[377224370,1754303455317,-500.0,0.00036618,2]
[377224371,1754303455327,-460.0,0.00036618,2]
[377224372,1754303455336,-462.28144231,0.00036618,2]
[377224373,1754303455345,-460.0,0.00036618,2]
[377224374,1754303455354,-461.38096873,0.00036618,2]
[377224375,1754303455364,-460.0,0.00036618,2]
[377224376,1754303455373,-460.0,0.00036618,2]
[377224377,1754303455382,-581.96,0.00036618,2]
[377224378,1754303455391,-460.0,0.00036618,2]
[377224379,1754303455401,-460.0,0.00036618,2]
[377224380,1754303455410,-463.06420409,0.00036618,2]
[377224381,1754303455419,-401.01909626,0.00036618,2]
[377224382,1754303455428,-460.0,0.00036618,2]
[377224383,1754303455438,-460.0,0.00036618,2]
[377224384,1754303455448,-490.2,0.00036618,2]
[377224385,1754303455457,-460.0,0.00036618,2]
[377224386,1754303455466,-460.0,0.00036618,2]
[377224387,1754303455476,-460.0,0.00036618,2]
[377224388,1754303455485,-460.0,0.00036618,2]
[377224389,1754303455494,-460.0,0.00036618,2]
[377224390,1754303455503,-668.44,0.00036618,2]
[377224391,1754303455513,-460.0,0.00036618,2]
[377224392,1754303455523,-460.0,0.00036618,2]
[377224393,1754303455532,-460.0,0.00036618,2]
[377224394,1754303455541,-460.0,0.00036618,2]
[377224395,1754303455551,-184.45563885,0.00036618,2]
[377224396,1754303455560,-460.0,0.00036618,2]
[377224397,1754303455569,-461.58329402,0.00036618,2]
[377224398,1754303455579,-460.0,0.00036618,2]
[377224399,1754303455588,-461.11661496,0.00036618,2]
[377224400,1754303455597,-553.68,0.00036618,2]
[377224401,1754303455607,-1105.82,0.00036618,2]
[377224402,1754303455617,-460.0,0.00036618,2]
[377224403,1754303455626,-460.0,0.00036618,2]
[377224404,1754303455635,-540.0,0.00036618,2]
[377224405,1754303455645,-460.0,0.00036618,2]
[377224406,1754303455654,-462.7298125,0.00036618,2]
[377224407,1754303455663,-460.0,0.00036618,2]
[377224408,1754303455673,-584.57,0.00036618,2]
[377224409,1754303455683,-473.09,0.00036618,2]
[377224410,1754303455692,-460.0,0.00036618,2]
[377224411,1754303455701,-460.0,0.00036618,2]
[377224412,1754303455711,-460.0,0.00036618,2]
[377224413,1754303455724,-460.0,0.00036618,2]
[377224414,1754303455734,-1302.84,0.00036623,2]
[377224415,1754303455744,-1463.59,0.00036623,2]
[377224416,1754303455753,-4744.6,0.00036623,2]
[377224417,1754303455765,-989.06,0.00036623,2]
[377224418,1754303455774,-12509.66,0.00036623,2]
[377224419,1754303455784,-502.02093762,0.00036629,5]
[377224420,1754303455794,-1630.43,0.00036633,2]
[377224421,1754303455804,-708.75,0.00036633,2]
[377224422,1754303455814,-520.83,0.00036633,2]
[377224423,1754303455823,-460.0,0.00036633,2]
[377224424,1754303455833,-7973.24,0.00036633,2]
[377224425,1754303455843,-460.0,0.00036633,2]
[377224426,1754303455852,-1196.17,0.00036633,2]
[377224427,1754303455861,-698.03,0.00036633,2]
[377224428,1754303455870,-1745.85,0.00036633,2]
[377224429,1754303455880,-1756.77,0.00036633,2]
[377224430,1754303455889,-734.96,0.00036633,2]
[377224431,1754303455898,-1702.98,0.00036633,2]
[377224432,1754303455908,-2284.04,0.00036633,2]
[377224433,1754303455918,-460.0,0.00036633,2]
[377224434,1754303455927,-886.1,0.00036633,2]
[377224435,1754303455937,-842.05743881,0.0003664,2]
[377224436,1754303455946,-801.88,0.000367,7]
[377224437,1754303455955,-2949.43158728,0.00036762,35]
[377224438,1754303455965,-151.0,0.00036781,14]
[377224439,1754303455974,-183.348641,0.00036781,14]
[377224440,1754303455983,-151.0,0.00036781,14]
[377224441,1754303455992,-197.317515,0.00036781,14]
[377224442,1754303456001,-197.317515,0.00036781,14]
[377224443,1754303456012,-460.0,0.00036781,2]
[377224444,1754303456021,-304.21218885,0.00036781,2]
[377224445,1754303456111,-151.0,0.000368,18]
[377224446,1754303456121,-742.96,0.00036847,2]
[377224447,1754303456130,-567.94,0.00036847,2]
[377224448,1754303456139,-460.0,0.00036847,2]
[377224449,1754303456148,-643.41,0.00036847,2]
[377224450,1754303456158,-460.0,0.00036847,2]
[377224451,1754303456167,-460.0,0.00036847,2]
[377224452,1754303456176,-1105.59,0.00036847,2]
[377224453,1754303456185,-1163.89,0.00036847,2]
[377224454,1754303456194,-460.0,0.00036847,2]
[377224455,1754303456203,-460.0,0.00036847,2]
[377224456,1754303456213,-805.32,0.00036847,2]
[377224457,1754303456223,-460.0,0.00036847,2]
[377224458,1754303456232,-460.0,0.00036847,2]
[377224459,1754303456241,-17736.97,0.00036847,2]
[377224460,1754303456250,-886.63,0.00036847,2]
[377224461,1754303456261,-460.0,0.00036847,2]
[377224462,1754303456270,-675.43,0.00036847,2]
[377224463,1754303456280,-917.98,0.00036847,2]
[377224464,1754303456290,-1081.86,0.00036847,2]
[377224465,1754303456300,-460.0,0.00036854,2]
[377224466,1754303456310,-450.17511065,0.00036854,2]
[377224467,1754303456319,-460.0,0.00036854,2]
[377224468,1754303456330,-784.53,0.00036854,2]
[377224469,1754303456339,-101.11604787,0.00036854,2]
[377224470,1754303456546,-1887.27395213,0.00036854,2]
[377224471,1754303456557,-1848.23,0.00036854,2]
[377224472,1754303456566,-1051.73,0.00036854,2]
[377224473,1754303456575,-672.94,0.00036854,2]
[377224474,1754303456585,-460.0,0.00036854,2]
[377224475,1754303456594,-460.0,0.00036854,2]
[377224476,1754303456604,-768.23,0.00036854,2]
[377224477,1754303456613,-828.61,0.00036854,2]
[377224478,1754303456623,-1432.89,0.00036854,2]
[377224479,1754303456632,-460.0,0.00036854,2]
[377224480,1754303456641,-1114.04,0.00036854,2]
[377224481,1754303456650,-671.32,0.00036854,2]
[377224482,1754303456660,-1829.3,0.00036854,2]
[377224483,1754303456669,-1084.05,0.00036854,2]
[377224484,1754303456680,-817.04,0.00036857,2]
[377224485,1754303456689,-460.0,0.00036857,2]
[377224486,1754303456698,-310.78149978,0.00036857,2]
[377224487,1754303456707,-658.32,0.00036857,2]
[377224488,1754303456718,-460.0,0.00036857,2]
[377224489,1754303456729,-488.29,0.00036857,2]
[377224490,1754303456739,-460.0,0.00036857,2]
[377224491,1754303456749,-460.0,0.00036857,2]
[377224492,1754303456759,-460.0,0.00036857,2]
[377224493,1754303456769,-460.0,0.00036857,2]
[377224494,1754303456778,-460.0,0.00036857,2]
[377224495,1754303456788,-460.0,0.00036857,2]
[377224496,1754303456797,-460.0,0.00036857,2]
[377224497,1754303456807,-460.0,0.00036857,2]
[377224498,1754303456816,-460.0,0.00036857,2]
[377224499,1754303456826,-460.0,0.00036857,2]
[377224500,1754303456836,-988.51,0.00036857,2]
[377224501,1754303456845,-460.0,0.00036857,2]
[377224502,1754303456855,-500.99588994,0.00036857,2]
[377224503,1754303456864,-460.0,0.00036857,2]
[377224504,1754303456873,-460.0,0.00036857,2]
[377224505,1754303456882,-532.94,0.00036857,2]
[377224506,1754303456892,-432.71136935,0.00036857,2]
[377224507,1754303456901,-460.0,0.00036857,2]
[377224508,1754303456910,-460.0,0.00036857,2]
[377224509,1754303456920,-460.0,0.00036857,2]
[377224510,1754303456929,-460.0,0.00036857,2]
[377224511,1754303456939,-669.54,0.00036857,2]
[377224512,1754303456948,-460.0,0.00036857,2]
[377224513,1754303456957,-580.0,0.00036857,2]
[377224514,1754303456967,-460.0,0.00036857,2]
[377224515,1754303456976,-460.0,0.00036857,2]
[377224516,1754303456986,-2434.32,0.00036857,2]
[377224517,1754303456995,-1790.38,0.00036857,2]
[377224518,1754303457004,-460.0,0.00036857,2]
[377224519,1754303457014,-1017.87,0.00036857,2]
[377224520,1754303457024,-892.82,0.00036857,2]
[377224521,1754303457033,-460.0,0.00036857,2]
[377224522,1754303457043,-1673.54,0.00036857,2]
[377224523,1754303457053,-1347.64,0.00036857,2]
[377224524,1754303457063,-507.16,0.00036857,2]
[377224525,1754303457072,-460.0,0.00036857,2]
[377224526,1754303457081,-460.0,0.00036857,2]
[377224527,1754303457090,-605.87816079,0.00036857,2]
[377224528,1754303457100,-2659.51,0.00036857,2]
[377224529,1754303457110,-1282.94,0.00036857,2]
[377224530,1754303457119,-547.39,0.00036857,2]
[377224531,1754303457129,-500.0,0.00036858,5]
[377224532,1754303457225,-16517.47,0.00036858,2]
[377224533,1754303457236,-1323.01,0.00036858,2]
[377224534,1754303457245,-7476.02,0.00036858,2]
[377224535,1754303457254,-460.0,0.00036858,2]
[377224536,1754303457264,-3933.54,0.00036858,2]
[377224537,1754303457274,-172.96812111,0.00036859,2]
[377224538,1754303457283,-2128.75,0.00036859,2]
[377224539,1754303457292,-460.0,0.00036859,2]
[377224540,1754303457302,-2479.48,0.00036859,2]
[377224541,1754303457311,-460.0,0.00036859,2]
[377224542,1754303457321,-1021.41,0.00036859,2]
[377224543,1754303457331,-826.45,0.00036859,2]
[377224544,1754303457339,-460.0,0.00036859,2]
[377224545,1754303457349,-3088.17,0.00036859,2]
[377224547,1754303457358,-475.07,0.00036859,2]
[377224548,1754303457367,-460.0,0.00036859,2]
[377224549,1754303457377,-694.91,0.00036859,2]
[377224550,1754303457386,-1226.35,0.00036859,2]
[377224551,1754303457396,-1313.4,0.00036859,2]
[377224552,1754303457405,-460.0,0.00036859,2]
[377224553,1754303457415,-460.0,0.00036859,2]
[377224554,1754303457425,-1976.52,0.00036859,2]
[377224555,1754303457434,-760.55,0.00036859,2]
[377224556,1754303457444,-1919.9,0.00036859,2]
[377224557,1754303457453,-460.0,0.00036859,2]
[377224558,1754303457463,-460.0,0.00036859,2]
[377224559,1754303457472,-1982.17,0.00036859,2]
[377224560,1754303457482,-460.0,0.00036859,2]
[377224561,1754303457491,-460.0,0.00036859,2]
[377224562,1754303457500,-859.86,0.00036859,2]
[377224563,1754303457511,-460.0,0.00036859,2]
[377224564,1754303457521,-460.0,0.00036859,2]
[377224565,1754303457530,-847.55,0.00036859,2]
[377224566,1754303457540,-460.0,0.00036859,2]
[377224567,1754303457550,-534.64,0.00036859,2]
[377224568,1754303457560,-460.0,0.00036859,2]
[377224569,1754303457570,-460.0,0.00036859,2]
[377224570,1754303457579,-530.99,0.00036859,2]
[377224571,1754303457590,-1893.38,0.00036859,2]
[377224572,1754303457600,-1421.8,0.00036859,2]
[377224573,1754303457609,-1103.48,0.00036859,2]
[377224574,1754303457619,-460.0,0.00036859,2]
[377224575,1754303457629,-500.0,0.00036859,2]
[377224576,1754303457638,-460.0,0.00036859,2]
[377224577,1754303457647,-460.0,0.00036859,2]
[377224578,1754303457657,-619.57,0.00036859,2]
[377224579,1754303457666,-1920.5,0.00036859,2]
[377224580,1754303457675,-780.86,0.00036859,2]
[377224581,1754303457685,-237.80551,0.00036869,14]
[377224582,1754303457694,-237.80551,0.00036869,14]
[377224583,1754303457703,-1241.24,0.00036869,2]
[377224584,1754303457713,-151.0,0.00036869,14]
[377224585,1754303457725,-728.2,0.00036869,2]
[377224586,1754303457734,-5667.12,0.00036869,2]
[377224587,1754303457744,-197.317515,0.00036869,14]
[377224588,1754303457753,-197.317515,0.00036869,14]
[377224589,1754303457766,-1081.47,0.00036869,2]
[377224590,1754303457775,-1022.593667,0.00036869,14]
[377224591,1754303457785,-1022.593667,0.00036869,14]
[377224592,1754303457796,-6359.95,0.00036869,2]
[377224593,1754303457808,-759.74,0.00036869,2]
[377224594,1754303457817,-460.0,0.00036869,2]
[377224595,1754303457827,-703.44,0.00036869,2]
[377224596,1754303457836,-1634.51,0.00036869,2]
[377224597,1754303457846,-865.36,0.00036869,2]
[377224598,1754303457855,-460.0,0.00036869,2]
[377224599,1754303457864,-714.63,0.00036869,2]
[377224600,1754303457874,-2914.88,0.00036869,2]
[377224601,1754303457883,-460.0,0.00036869,2]
[377224602,1754303457892,-449.20781525,0.00036874,5]
[377224603,1754303457902,-460.0,0.00036887,2]
[377224604,1754303457911,-460.0,0.00036887,2]
[377224605,1754303457921,-151.0,0.0003689,14]
[377224606,1754303457930,-151.0,0.0003689,14]
[377224607,1754303457940,-798.99,0.0003689,2]
[377224608,1754303457950,-554.81,0.0003689,2]
[377224609,1754303457960,-1931.1,0.0003689,2]
[377224610,1754303457971,-700.4,0.0003689,2]
[377224611,1754303457980,-705.21,0.0003689,2]
[377224612,1754303457989,-463.56714303,0.0003689,2]
[377224613,1754303457999,-1047.04,0.0003689,2]
[377224614,1754303458008,-1047.04,0.0003689,2]
[377224615,1754303458017,-473.36572222,0.0003689,2]
[377224616,1754303458027,-460.0,0.0003689,2]
[377224617,1754303458036,-945.55,0.0003689,2]
[377224618,1754303458045,-460.0,0.0003689,2]
[377224619,1754303458055,-460.0,0.0003689,2]
[377224620,1754303458064,-7270.13,0.0003689,2]
[377224621,1754303458073,-460.0,0.0003689,2]
[377224622,1754303458083,-609.52,0.0003689,2]
[377224623,1754303458093,-964.32,0.0003689,2]
[377224624,1754303458102,-676.48,0.0003689,2]
[377224625,1754303458112,-5287.54,0.0003689,2]
[377224626,1754303458122,-460.0,0.0003689,2]
[377224627,1754303458131,-500.0,0.00036892,2]
[377224628,1754303458141,-460.0,0.00036892,2]
[377224629,1754303458150,-460.0,0.00036892,2]
[377224630,1754303458160,-460.0,0.00036892,2]
[377224631,1754303458170,-460.0,0.00036892,2]
[377224632,1754303458179,-581.96,0.00036892,2]
[377224633,1754303458188,-460.0,0.00036892,2]
[377224634,1754303458198,-460.0,0.00036892,2]
[377224635,1754303458207,-460.0,0.00036892,2]
[377224636,1754303458217,-460.0,0.00036892,2]
[377224637,1754303458226,-490.2,0.00036892,2]
[377224638,1754303458236,-460.0,0.00036892,2]
[377224639,1754303458245,-460.0,0.00036892,2]
[377224640,1754303458254,-460.0,0.00036892,2]
[377224641,1754303458265,-238.30607938,0.00036892,2]
[377224642,1754303458275,-460.0,0.00036892,2]
[377224643,1754303458284,-668.44,0.00036892,2]
[377224644,1754303458293,-460.0,0.00036892,2]
[377224645,1754303458303,-460.0,0.00036892,2]
[377224646,1754303458312,-460.0,0.00036892,2]
[377224647,1754303458322,-460.0,0.00036892,2]
[377224648,1754303458331,-460.0,0.00036892,2]
[377224649,1754303458340,-460.0,0.00036892,2]
[377224650,1754303458349,-553.68,0.00036892,2]
[377224651,1754303458359,-1105.82,0.00036892,2]
[377224652,1754303458367,-460.0,0.00036892,2]
[377224653,1754303458377,-460.0,0.00036892,2]
[377224654,1754303458386,-460.0,0.00036892,2]
[377224655,1754303458395,-180.22914868,0.00036892,2]
[377224656,1754303458405,-584.57,0.00036892,2]
[377224657,1754303458414,-473.09,0.00036892,2]
[377224658,1754303458423,-460.0,0.00036892,2]
[377224659,1754303458433,-460.0,0.00036892,2]
[377224660,1754303458516,-1302.84,0.00036897,2]
[377224661,1754303458526,-1463.59,0.00036897,2]
[377224662,1754303458535,-4744.6,0.00036897,2]
[377224663,1754303458545,-989.06,0.00036897,2]
[377224664,1754303458554,-1630.43,0.00036907,2]
[377224665,1754303458564,-708.75,0.00036907,2]
[377224666,1754303458576,-520.83,0.00036907,2]
[377224667,1754303458586,-460.0,0.00036907,2]
[377224668,1754303458595,-7973.24,0.00036907,2]
[377224669,1754303458606,-460.0,0.00036907,2]
[377224670,1754303458616,-1196.17,0.00036907,2]
[377224671,1754303458625,-698.03,0.00036907,2]
[377224672,1754303458635,-1745.85,0.00036907,2]
[377224673,1754303458644,-1756.77,0.00036907,2]
[377224674,1754303458653,-734.96,0.00036907,2]
[377224675,1754303458662,-1702.98,0.00036907,2]
[377224676,1754303458672,-2284.04,0.00036907,2]
[377224677,1754303458681,-460.0,0.00036907,2]
[377224678,1754303458690,-886.1,0.00036907,2]
[377224679,1754303458707,-360.0,0.0003691,2]
[377224680,1754303458716,-959.73,0.0003692,2]
[377224681,1754303458729,-502.19453057,0.00036921,5]
[377224682,1754303458738,-1000.0,0.00036921,5]
[377224683,1754303458747,-1000.0,0.00036921,5]
[377224684,1754303458757,-1001.64517611,0.00036921,5]
[377224685,1754303458768,-1082.8001158,0.00036921,5]
[377224686,1754303458777,-1000.0,0.00036921,5]
[377224687,1754303458787,-751.49656294,0.00036921,5]
[377224688,1754303458797,-300.0,0.00036921,5]
[377224689,1754303458807,-517.62754024,0.00036927,2]
[377224690,1754303458816,-2949.43158728,0.00036969,35]
[377224691,1754303458825,-6859.16,0.00036986,120]
[377224692,1754303458835,-151.0,0.00037,15]
[377224693,1754303458845,-197.317515,0.00037055,14]
[377224694,1754303458854,-197.317515,0.00037055,14]
[377224695,1754303458864,-460.0,0.00037055,2]
[377224696,1754303458874,-5538.66,0.000371,14]
[377224697,1754303458884,-2000.0,0.00037116,5]
[377224698,1754303458894,-2000.0,0.00037116,5]
[377224699,1754303458904,-2000.0,0.00037116,5]
[377224700,1754303458913,-2000.0,0.00037116,5]
[377224701,1754303458923,-2000.0,0.00037116,5]
[377224702,1754303458933,-742.96,0.00037121,2]
[377224703,1754303458942,-567.94,0.00037121,2]
[377224704,1754303458952,-460.0,0.00037121,2]
[377224705,1754303458961,-643.41,0.00037121,2]
[377224706,1754303458971,-460.0,0.00037121,2]
[377224707,1754303458981,-460.0,0.00037121,2]
[377224708,1754303458990,-1105.59,0.00037121,2]
[377224709,1754303458999,-1163.89,0.00037121,2]
[377224710,1754303459009,-460.0,0.00037121,2]
[377224711,1754303459019,-460.0,0.00037121,2]
[377224712,1754303459028,-805.32,0.00037121,2]
[377224713,1754303459037,-460.0,0.00037121,2]
[377224714,1754303459047,-460.0,0.00037121,2]
[377224715,1754303459056,-17736.97,0.00037121,2]
[377224716,1754303459065,-886.63,0.00037121,2]
[377224717,1754303459075,-240.9004089,0.00037121,2]
[377224718,1754303459092,-675.43,0.00037121,2]
[377224719,1754303459111,-917.98,0.00037121,2]
[377224720,1754303459130,-1081.86,0.00037121,2]
[377224722,1754303459150,-460.0,0.00037128,2]
[377224724,1754303459170,-460.0,0.00037128,2]
[377224725,1754303459189,-784.53,0.00037128,2]
[377224727,1754303459208,-1988.39,0.00037128,2]
[377224728,1754303459224,-1848.23,0.00037128,2]
[377224730,1754303459241,-1051.73,0.00037128,2]
[377224731,1754303459260,-672.94,0.00037128,2]
[377224732,1754303459280,-460.0,0.00037128,2]
[377224733,1754303459295,-460.0,0.00037128,2]
[377224734,1754303459309,-768.23,0.00037128,2]
[377224735,1754303459327,-828.61,0.00037128,2]
[377224736,1754303459344,-1432.89,0.00037128,2]
[377224737,1754303459357,-460.0,0.00037128,2]
[377224738,1754303459372,-1114.04,0.00037128,2]
[377224739,1754303459387,-671.32,0.00037128,2]
[377224740,1754303459402,-1829.3,0.00037128,2]
[377224741,1754303459418,-1084.05,0.00037128,2]
[377224742,1754303459432,-817.04,0.00037131,2]